fUSD/lending_fUSD_20241028
["ID","MTS","AMOUNT","RATE_DAILY","PERIOD"]
[340958611,1730159433814,-1087.58373085,0.0004,7]
[340958612,1730159433824,-971.01,0.0004,120]
[340958613,1730159433834,-156.99,0.0004,2]
[340958614,1730159433844,-23118.0,0.0004,30]
[340958615,1730159433854,-1007.0,0.000401,7]
[340958616,1730159433863,-273.92017919,0.00040191,28]
[340958617,1730159433873,-716.25,0.00040254,2]
[340958618,1730159433882,-500.0,0.00040309,2]
[340958619,1730159433891,-500.0,0.00040309,2]
[340958620,1730159433901,-162.76,0.00040328,2]
[340958621,1730159433911,-4742.2131,0.00041,30]
[340958622,1730159433920,-6984.8,0.00041095,120]
[340958623,1730159433930,-150.0,0.00041096,2]
[340958624,1730159433939,-384.78,0.000415,30]
[340958625,1730159433949,-273.92017919,0.00041514,28]
[340958626,1730159433959,-150.0,0.00041527,2]
[340958627,1730159433969,-803.89728738,0.00041642,30]
[340958628,1730159433979,-19789.51,0.000417,7]
[340958629,1730159433988,-7843.96,0.000417,7]
[340958630,1730159433998,-19972.89,0.000417,7]
[340958631,1730159434008,-19149.51,0.000417,7]
[340958632,1730159434017,-5506.69,0.000417,7]
[340958633,1730159434028,-19081.36,0.000417,7]
[340958634,1730159434038,-17512.77,0.000417,7]
[340958635,1730159434048,-8828.56,0.000417,7]
[340958636,1730159434057,-150.0,0.00041706,2]
[340958637,1730159434067,-150.0,0.00041805,2]
[340958638,1730159434080,-150.0,0.00041862,2]
[340958639,1730159434090,-4308.83908718,0.0004188,2]
[340958640,1730159434099,-1300.0,0.000419,15]
[340958641,1730159434111,-210.718,0.0004197,14]
[340958642,1730159434120,-500.0,0.00041973,10]
[340958643,1730159434130,-150.0,0.00041992,2]
[340958644,1730159434139,-46843.4343007,0.00042,30]
[340958645,1730159434151,-4387.93,0.00042,2]
[340958646,1730159434165,-1455.0,0.00042,2]
[340958647,1730159434175,-500.0,0.00042,10]
[340958648,1730159434184,-160.014,0.00042044,14]
[340958649,1730159434194,-150.0,0.00042147,2]
[340958650,1730159434204,-150.0,0.00042177,2]
[340958651,1730159434215,-6984.8,0.00042191,120]
[340958652,1730159434226,-150.0,0.00042249,14]
[340958653,1730159434236,-8190.48436994,0.00042251,4]
[340958654,1730159434246,-1896.15968731,0.00042263,4]
[340958655,1730159434256,-11213.78521166,0.00042264,4]
[340958656,1730159434266,-150.0,0.00042264,2]
[340958657,1730159434289,-3570.58683134,0.00042272,4]
[340958658,1730159434299,-1762.3191774,0.00042272,4]
[340958659,1730159434309,-11213.78521166,0.00042276,4]
[340958660,1730159434320,-3570.58683134,0.00042276,4]
[340958661,1730159434330,-8190.48436994,0.00042277,4]
[340958662,1730159434340,-6352.80294787,0.00042278,4]
[340958663,1730159434350,-528.84246548,0.00042279,4]
[340958664,1730159434360,-200.0,0.00042284,4]
[340958665,1730159434370,-1762.3191774,0.00042286,4]
[340958666,1730159434380,-3063.37763132,0.00042289,4]
[340958667,1730159434389,-9725.0,0.000423,5]
[340958668,1730159434400,-11213.78521166,0.00042308,4]
[340958669,1730159434410,-8190.48436994,0.00042313,4]
[340958670,1730159434419,-200.0,0.00042314,4]
[340958671,1730159434430,-528.84246548,0.00042314,4]
[340958672,1730159434440,-200.0,0.00042325,4]
[340958673,1730159434450,-528.84246548,0.00042332,4]
[340958674,1730159434461,-150.0,0.00042332,2]
[340958675,1730159434470,-200.0,0.00042332,4]
[340958676,1730159434480,-11213.78521166,0.00042334,4]
[340958677,1730159434490,-200.0,0.00042337,4]
[340958678,1730159434500,-6352.80294787,0.00042345,4]
[340958679,1730159434510,-3570.58683134,0.0004235,4]
[340958680,1730159434520,-528.84246548,0.00042352,4]
[340958681,1730159434530,-8190.48436994,0.00042352,4]
[340958682,1730159434540,-1896.15968731,0.00042359,4]
[340958683,1730159434550,-201.05484032,0.00042364,4]
[340958684,1730159434560,-150.0,0.00042366,2]
[340958685,1730159434571,-6352.80294787,0.0004237,4]
[340958686,1730159434580,-201.05484032,0.00042372,4]
[340958687,1730159434591,-503.81870621,0.00042373,7]
[340958688,1730159434601,-500.0,0.00042373,10]
[340958689,1730159434611,-500.0,0.00042373,5]
[340958690,1730159434621,-200.0,0.00042382,4]
[340958691,1730159434631,-3570.58683134,0.0004239,4]
[340958692,1730159434640,-6352.80294787,0.00042391,4]
[340958693,1730159434651,-4961.32925,0.00042394,30]
[340958694,1730159434662,-150.0,0.00042399,2]
[340958695,1730159434672,-156.19,0.000424,60]
[340958696,1730159434682,-150.0,0.000424,51]
[340958697,1730159434692,-3063.37763132,0.000424,4]
[340958698,1730159434889,-6352.80294787,0.00042404,4]
[340958699,1730159434899,-201.05484032,0.00042405,4]
[340958700,1730159434909,-2863.61252893,0.00042406,4]
[340958701,1730159434918,-11213.78521166,0.00042409,4]
[340958702,1730159434928,-150.0,0.00042411,2]
[340958703,1730159434941,-1762.3191774,0.00042412,4]
[340958704,1730159434953,-3570.58683134,0.00042412,4]
[340958705,1730159434965,-3063.37763132,0.00042414,4]
[340958706,1730159434974,-6352.80294787,0.00042415,4]
[340958707,1730159434984,-200.0,0.00042415,4]
[340958708,1730159434994,-1896.15968731,0.00042418,4]
[340958709,1730159435003,-2863.61252893,0.0004242,4]
[340958710,1730159435014,-11213.78521166,0.00042421,4]
[340958711,1730159435024,-3570.58683134,0.00042434,4]
[340958712,1730159435033,-2863.61252893,0.00042436,4]
[340958713,1730159435043,-1896.15968731,0.00042448,4]
[340958714,1730159435052,-2863.61252893,0.00042449,4]
[340958715,1730159435062,-1762.3191774,0.0004245,4]
[340958716,1730159435074,-3063.37763132,0.00042451,4]
[340958717,1730159435083,-201.05484032,0.00042453,4]
[340958718,1730159435093,-1896.15968731,0.00042453,4]
[340958719,1730159435102,-201.05484032,0.00042455,4]
[340958720,1730159435114,-528.84246548,0.00042461,4]
[340958721,1730159435123,-528.84246548,0.00042463,4]
[340958722,1730159435133,-2863.61252893,0.00042463,4]
[340958723,1730159435142,-1762.3191774,0.00042471,4]
[340958724,1730159435153,-431.60059347,0.00042473,10]
[340958725,1730159435162,-500.0,0.00042473,10]
[340958726,1730159435171,-1896.15968731,0.00042474,4]
[340958727,1730159435181,-201.05484032,0.00042474,4]
[340958728,1730159435190,-150.0,0.00042476,2]
[340958729,1730159435200,-1762.3191774,0.00042478,4]
[340958730,1730159435210,-3063.37763132,0.00042481,4]
[340958731,1730159435220,-8190.48436994,0.00042481,4]
[340958732,1730159435229,-2863.61252893,0.00042482,4]
[340958733,1730159435238,-8190.48436994,0.0004249,4]
[340958734,1730159435248,-3063.37763132,0.00042498,4]
[340958735,1730159435257,-716.25,0.00042518,2]
[340958736,1730159435266,-287.5,0.00042521,30]
[340958737,1730159435276,-2205.0,0.00042528,2]
[340958738,1730159435286,-152.0,0.0004253,3]
[340958739,1730159435295,-150.0,0.00042573,2]
[340958740,1730159435304,-150.0,0.00042578,2]
[340958741,1730159435313,-150.0,0.00042578,2]
[340958742,1730159435322,-150.0,0.00042579,2]
[340958743,1730159435332,-150.0,0.00042637,2]
[340958744,1730159435341,-150.0,0.00042675,2]
[340958745,1730159435350,-150.102908,0.00042698,120]
[340958746,1730159435359,-150.0,0.00042723,2]
[340958747,1730159435369,-150.0,0.00042766,2]
[340958748,1730159435378,-150.0,0.00042793,2]
[340958749,1730159435388,-150.102908,0.00042798,120]
[340958750,1730159435397,-30225.0,0.000428,120]
[340958751,1730159435406,-150.0,0.00042806,2]
[340958752,1730159435415,-150.0,0.00042819,2]
[340958753,1730159435425,-150.0,0.00042833,2]
[340958754,1730159435434,-273.92017919,0.00042836,28]
[340958755,1730159435443,-150.0,0.00042853,2]
[340958756,1730159435452,-150.0,0.00042854,2]
[340958757,1730159435462,-360.56491364,0.00042884,7]
[340958758,1730159435472,-150.102908,0.00042898,120]
[340958759,1730159435482,-150.0,0.00042903,2]
[340958760,1730159435491,-151.505,0.00042928,30]
[340958761,1730159435500,-150.0,0.00042936,2]
[340958762,1730159435509,-150.102908,0.00042998,120]
[340958763,1730159435519,-490.23,0.00043,120]
[340958764,1730159435528,-9000.0,0.00043,10]
[340958765,1730159435538,-407.21826142,0.00043,2]
[340958766,1730159435548,-20003.93808733,0.00043,120]
[340958767,1730159435557,-150.0,0.00043043,2]
[340958768,1730159435567,-295.66681258,0.00043055,2]
[340958769,1730159435576,-150.0,0.0004306,2]
[340958770,1730159435585,-1050.91357007,0.00043091,10]
[340958771,1730159435594,-1023.62717946,0.00043091,10]
[340958772,1730159435604,-1034.41110324,0.00043091,10]
[340958773,1730159435613,-1235.76026739,0.00043091,10]
[340958774,1730159435622,-150.102908,0.00043098,120]
[340958775,1730159435632,-156.19,0.000431,60]
[340958776,1730159435642,-150.0,0.00043124,2]
[340958777,1730159435651,-150.0,0.00043132,2]
[340958778,1730159435661,-500.0,0.00043155,7]
[340958779,1730159435671,-500.0,0.00043155,7]
[340958780,1730159435680,-500.0,0.00043155,7]
[340958781,1730159435690,-500.0,0.00043155,7]
[340958782,1730159435699,-500.0,0.00043155,7]
[340958783,1730159435709,-500.0,0.00043155,7]
[340958784,1730159435719,-500.0,0.00043155,7]
[340958785,1730159435728,-500.0,0.00043155,7]
[340958786,1730159435738,-500.0,0.00043155,7]
[340958787,1730159435747,-500.0,0.00043155,7]
[340958788,1730159435757,-500.0,0.00043155,7]
[340958789,1730159435766,-500.0,0.00043155,7]
[340958790,1730159435776,-500.0,0.00043155,7]
[340958791,1730159435785,-500.0,0.00043155,7]
[340958792,1730159435795,-235.69,0.00043155,7]
[340958793,1730159435804,-500.0,0.00043155,7]
[340958794,1730159435814,-500.0,0.00043155,7]
[340958795,1730159435824,-500.0,0.00043155,7]
[340958796,1730159435834,-500.0,0.00043155,7]
[340958797,1730159435844,-500.0,0.00043155,7]
[340958798,1730159435855,-500.0,0.00043155,7]
[340958799,1730159435865,-500.0,0.00043155,7]
[340958800,1730159435874,-500.0,0.00043155,7]
[340958801,1730159435883,-500.0,0.00043155,7]
[340958802,1730159435893,-500.0,0.00043155,7]
[340958803,1730159435902,-500.0,0.00043155,7]
[340958804,1730159435912,-500.0,0.00043155,7]
[340958805,1730159435921,-500.0,0.00043155,7]
[340958806,1730159435931,-500.0,0.00043155,7]
[340958807,1730159435940,-500.0,0.00043155,7]
[340958808,1730159435950,-500.0,0.00043155,7]
[340958809,1730159435959,-500.0,0.00043155,7]
[340958810,1730159435969,-500.0,0.00043155,7]
[340958811,1730159435978,-500.0,0.00043155,7]
[340958812,1730159435987,-500.0,0.00043155,7]
[340958813,1730159435997,-500.0,0.00043155,7]
[340958814,1730159436006,-500.0,0.00043155,7]
[340958815,1730159436017,-500.0,0.00043155,7]
[340958816,1730159436027,-500.0,0.00043155,7]
[340958817,1730159436038,-500.0,0.00043155,7]
[340958818,1730159436048,-500.0,0.00043155,7]
[340958819,1730159436058,-500.0,0.00043155,7]
[340958820,1730159436070,-500.0,0.00043155,7]
[340958821,1730159436080,-500.0,0.00043155,7]
[340958822,1730159436089,-500.0,0.00043155,7]
[340958823,1730159436098,-500.0,0.00043155,7]
[340958824,1730159436109,-382.35,0.00043155,7]
[340958825,1730159436120,-150.0,0.00043161,2]
[340958826,1730159436130,-150.0,0.00043195,2]
[340958827,1730159436141,-150.102908,0.00043198,120]
[340958828,1730159436153,-150.0,0.00043216,2]
[340958829,1730159436164,-150.0,0.00043225,2]
[340958830,1730159436175,-488.4099055,0.00043234,3]
[340958831,1730159436184,-150.102908,0.00043248,120]
[340958832,1730159436193,-150.0,0.00043259,2]
[340958833,1730159436203,-204.1487585,0.00043259,15]
[340958834,1730159436214,-6984.8,0.00043287,120]
[340958835,1730159436223,-150.0,0.00043294,2]
[340958836,1730159436234,-150.102908,0.00043298,120]
[340958837,1730159436243,-1600.0,0.000433,15]
[340958838,1730159436252,-150.0,0.00043308,2]
[340958839,1730159436261,-150.0,0.00043309,2]
[340958840,1730159436270,-150.0,0.00043324,2]
[340958841,1730159436279,-150.0,0.00043328,2]
[340958842,1730159436288,-150.102908,0.00043348,120]
[340958843,1730159436298,-150.0,0.00043382,2]
[340958844,1730159436307,-150.0,0.00043387,2]
[340958845,1730159436317,-150.102908,0.00043398,120]
[340958846,1730159436326,-300.0,0.000434,15]
[340958847,1730159436335,-150.102908,0.00043448,120]
[340958848,1730159436345,-2158.56373216,0.0004348,14]
[340958849,1730159436354,-150.0,0.00043494,2]
[340958850,1730159436363,-150.102908,0.00043498,120]
[340958851,1730159436372,-2000.0,0.000435,2]
[340958852,1730159436382,-2000.0,0.000435,2]
[340958853,1730159436392,-2000.0,0.000435,2]
[340958854,1730159436401,-2000.0,0.000435,2]
[340958855,1730159436411,-156.18,0.000435,60]
[340958856,1730159436420,-389.42,0.000435,30]
[340958857,1730159436429,-300.0,0.000435,15]
[340958858,1730159436440,-150.0,0.0004351,2]
[340958859,1730159436449,-326.36881658,0.0004353,2]
[340958860,1730159436460,-150.5,0.0004357,120]
[340958861,1730159436469,-150.5,0.0004358,120]
[340958862,1730159436478,-150.5,0.0004358,120]
[340958863,1730159436487,-150.0,0.00043582,2]
[340958864,1730159436499,-150.5,0.0004359,120]
[340958865,1730159436509,-150.5,0.0004359,120]
[340958866,1730159436520,-300.0,0.000436,15]
[340958867,1730159436530,-295.66681256,0.00043607,2]
[340958868,1730159436540,-23367.84477174,0.00043607,2]
[340958869,1730159436552,-2883.79501764,0.0004362,6]
[340958870,1730159436562,-165.68,0.0004362,120]
[340958871,1730159436571,-3102.80676113,0.00043623,6]
[340958872,1730159436580,-865.37857994,0.00043629,6]
[340958873,1730159436589,-18349.83034641,0.0004363,6]
[340958874,1730159436599,-10395.49573294,0.0004363,6]
[340958875,1730159436609,-4685.91141104,0.00043631,6]
[340958876,1730159436618,-10395.49573294,0.00043642,6]
[340958877,1730159436628,-5842.77845136,0.00043643,6]
[340958878,1730159436637,-4685.91141104,0.00043645,6]
[340958879,1730159436647,-13402.61078724,0.00043646,6]
[340958880,1730159436656,-3102.80676113,0.00043647,6]
[340958881,1730159436666,-328.99882969,0.00043648,6]
[340958882,1730159436675,-2883.79501764,0.00043649,6]
[340958883,1730159436685,-5012.7997604,0.00043651,6]
[340958884,1730159436695,-18349.83034641,0.00043658,6]
[340958885,1730159436704,-5012.7997604,0.00043658,6]
[340958886,1730159436715,-328.99882969,0.00043658,6]
[340958887,1730159436724,-12489.1993551,0.0004366,9]
[340958888,1730159436733,-328.99882969,0.0004366,6]
[340958889,1730159436742,-865.37857994,0.00043666,6]
[340958890,1730159436752,-13402.61078724,0.0004367,6]
[340958891,1730159436761,-156.99,0.0004367,2]
[340958892,1730159436771,-2883.79501764,0.00043671,6]
[340958893,1730159436780,-500.0,0.00043673,10]
[340958894,1730159436789,-343.96709684,0.00043673,10]
[340958895,1730159436798,-500.0,0.00043673,10]
[340958896,1730159436808,-18349.83034641,0.00043673,6]
[340958897,1730159436817,-10395.49573294,0.00043674,6]
[340958898,1730159436827,-5012.7997604,0.00043677,6]
[340958899,1730159436837,-150.0,0.00043679,14]
[340958900,1730159436847,-248446.27697449,0.0004368,2]
[340958901,1730159436857,-1032475.55106029,0.0004368,2]
[340958902,1730159436969,-655.232,0.0004368,2]
[340958903,1730159436990,-1684.98777253,0.0004368,2]
[340958904,1730159437001,-7174.59119563,0.0004368,2]
[340958905,1730159437012,-2233.56930441,0.0004368,2]
[340958906,1730159437024,-300.0,0.0004368,2]
[340958907,1730159437035,-449.98008508,0.0004368,2]
[340958914,1730159438007,-362.99451503,0.00026999,2]
[340958915,1730159438016,-164.80128298,0.00038356,2]
[340958916,1730159438026,-289.16507324,0.00040658,120]
[340958917,1730159438036,-450.0,0.00041514,28]
[340958918,1730159438045,-6190.55548163,0.0004368,2]
[340958919,1730159438056,-3125.94448,0.0004368,2]
[340958920,1730159438069,-628.38999299,0.0004368,2]
[340958921,1730159438083,-895.25,0.0004368,2]
[340958922,1730159438142,-196.0,0.0004368,7]
[340958923,1730159438154,-3169.95,0.0004368,2]
[340958924,1730159438169,-705.977646,0.0004368,2]
[340958925,1730159438185,-13250.52495133,0.0004368,2]
[340959094,1730159440022,-150.0,0.00042501,2]
[340959097,1730159440032,-13552.9742399,0.0004368,2]
[340959099,1730159440044,-7443.06862629,0.0004368,2]
[340959101,1730159440056,-14353.95713381,0.0004368,2]
[340959104,1730159440076,-702.51650774,0.0004368,2]
[340959106,1730159440088,-1061.62927074,0.0004368,2]
[340959111,1730159440123,-250.77812746,0.0004368,2]
[340959117,1730159440175,-517.05572612,0.0004368,2]
[340959488,1730159444395,-926670.70334287,0.0004368,2]
[340959489,1730159444405,-865.37857994,0.00043688,6]
[340959490,1730159444415,-3102.80676113,0.00043692,6]
[340959491,1730159444425,-4685.91141104,0.00043695,6]
[340959492,1730159444436,-5842.77845136,0.00043695,6]
[340959493,1730159444446,-13402.61078724,0.00043697,6]
[340959494,1730159444456,-5842.77845136,0.00043699,6]
[340959495,1730159444469,-284.11889106,0.000437,120]
[340959496,1730159444480,-153.06,0.000437,36]
[340959497,1730159444490,-300.0,0.000437,15]
[340959498,1730159444500,-1500.0,0.00043701,7]
[340959499,1730159444510,-500.0,0.00043703,4]
[340959500,1730159444520,-500.0,0.00043712,4]
[340959501,1730159444531,-18069.575,0.00043718,120]
[340959502,1730159444541,-18069.576,0.00043718,120]
[340959503,1730159444551,-18069.576,0.00043718,120]
[340959504,1730159444560,-18069.576,0.00043718,120]
[340959505,1730159444570,-18069.576,0.00043718,120]
[340959506,1730159444580,-5505.7650141,0.0004372,2]
[340959507,1730159444591,-17130.0,0.0004372,2]
[340959508,1730159444600,-500.0,0.00043721,4]
[340959509,1730159444610,-500.0,0.00043729,4]
[340959510,1730159444620,-500.0,0.00043738,4]
[340959511,1730159444629,-1000.0,0.00043742,10]
[340959512,1730159444639,-500.0,0.00043747,4]
[340959513,1730159444649,-500.0,0.00043756,4]
[340959514,1730159444659,-500.0,0.00043765,4]
[340959515,1730159444669,-500.0,0.00043773,4]
[340959516,1730159444679,-500.0,0.00043782,4]
[340959517,1730159444689,-500.0,0.00043791,4]
[340959518,1730159444698,-150.102908,0.00043798,120]
[340959519,1730159444708,-500.0,0.000438,4]
[340959520,1730159444718,-12302.55420619,0.000438,2]
[340959521,1730159444728,-4619.68902984,0.000438,2]
[340959522,1730159444738,-156.19,0.000438,60]
[340959523,1730159444747,-153.06,0.000438,36]
[340959524,1730159444757,-153.06,0.000438,36]
[340959525,1730159444766,-153.06,0.000438,36]
[340959526,1730159444776,-153.06,0.000438,36]
[340959527,1730159444786,-1190.26134,0.000438,71]
[340959528,1730159444798,-715.0,0.000438,15]
[340959529,1730159444808,-150.0,0.00043802,2]
[340959530,1730159444818,-2142.12361125,0.00043804,30]
[340959531,1730159444828,-962.86714261,0.00043804,30]
[340959532,1730159444845,-689.29,0.00043808,120]
[340959533,1730159444855,-500.0,0.00043809,4]
[340959534,1730159444865,-159.532354,0.00043812,120]
[340959535,1730159444876,-500.0,0.00043817,4]
[340959536,1730159444886,-5575.18785298,0.0004382,120]
[340959537,1730159444895,-1500.0,0.00043823,7]
[340959538,1730159444905,-500.0,0.00043826,4]
[340959539,1730159444915,-150.0,0.00043829,2]
[340959540,1730159444924,-500.0,0.00043835,4]
[340959541,1730159444934,-500.0,0.00043835,5]
[340959542,1730159444944,-500.0,0.00043835,5]
[340959543,1730159444953,-500.0,0.00043835,5]
[340959544,1730159444962,-500.0,0.00043835,5]
[340959545,1730159444972,-500.0,0.00043835,5]
[340959546,1730159444982,-500.0,0.00043835,14]
[340959547,1730159444992,-521.89118043,0.00043835,14]
[340959548,1730159445003,-511.60561627,0.00043835,14]
[340959549,1730159445013,-500.0,0.00043835,14]
[340959550,1730159445023,-507.44994876,0.00043835,14]
[340959551,1730159445033,-507.63773679,0.00043835,14]
[340959552,1730159445042,-500.0,0.00043835,14]
[340959553,1730159445052,-500.0,0.00043835,14]
[340959554,1730159445062,-500.0,0.00043835,14]
[340959555,1730159445076,-500.0,0.00043835,14]
[340959556,1730159445085,-500.0,0.00043835,14]
[340959557,1730159445095,-500.0,0.00043835,14]
[340959558,1730159445105,-279.72255032,0.00043835,14]
[340959559,1730159445115,-508.94423222,0.00043835,14]
[340959560,1730159445126,-500.0,0.00043835,14]
[340959561,1730159445136,-500.0,0.00043835,14]
[340959562,1730159445146,-270.99085232,0.00043835,14]
[340959563,1730159445157,-506.89462912,0.00043835,14]
[340959564,1730159445169,-500.0,0.00043835,14]
[340959565,1730159445179,-518.49397233,0.00043835,14]
[340959566,1730159445189,-500.0,0.00043835,14]
[340959567,1730159445198,-500.6142965,0.00043835,14]
[340959568,1730159445208,-500.0,0.00043835,14]
[340959569,1730159445223,-500.0,0.00043835,14]
[340959570,1730159445236,-500.0,0.00043835,14]
[340959571,1730159445251,-500.0,0.00043835,14]
[340959572,1730159445262,-500.0,0.00043835,14]
[340959573,1730159445273,-500.0,0.00043835,14]
[340959574,1730159445285,-500.0,0.00043835,14]
[340959575,1730159445297,-500.0,0.00043835,14]
[340959576,1730159445309,-500.0,0.00043835,14]
[340959577,1730159445321,-500.0,0.00043835,14]
[340959578,1730159445331,-500.0,0.00043835,14]
[340959579,1730159445342,-500.0,0.00043835,14]
[340959580,1730159445354,-500.0,0.00043835,14]
[340959581,1730159445364,-500.0,0.00043835,14]
[340959582,1730159445374,-500.0,0.00043835,14]
[340959583,1730159445384,-500.0,0.00043835,14]
[340959584,1730159445394,-454.72,0.00043835,14]
[340959585,1730159445404,-500.0,0.00043835,14]
[340959586,1730159445415,-500.0,0.00043835,14]
[340959587,1730159445424,-500.0,0.00043835,14]
[340959588,1730159445434,-500.0,0.00043835,14]
[340959589,1730159445444,-500.0,0.00043835,14]
[340959590,1730159445456,-500.0,0.00043835,14]
[340959591,1730159445471,-500.0,0.00043835,14]
[340959592,1730159445481,-196.56723821,0.00043835,14]
[340959593,1730159445490,-152.0,0.00043835,14]
[340959594,1730159445500,-500.0,0.00043835,14]
[340959595,1730159445510,-500.0,0.00043835,14]
[340959596,1730159445520,-500.0,0.00043835,14]
[340959597,1730159445530,-500.0,0.00043835,14]
[340959598,1730159445540,-500.0,0.00043835,14]
[340959599,1730159445550,-500.0,0.00043835,14]
[340959600,1730159445559,-500.0,0.00043835,14]
[340959601,1730159445569,-523.55060239,0.00043835,14]
[340959602,1730159445579,-509.91013456,0.00043835,14]
[340959603,1730159445588,-510.33420062,0.00043835,14]
[340959604,1730159445599,-516.06969072,0.00043835,14]
[340959605,1730159445608,-531.46685329,0.00043835,14]
[340959606,1730159445618,-500.0,0.00043835,14]
[340959607,1730159445628,-568.48950206,0.00043835,14]
[340959608,1730159445638,-500.0,0.00043835,14]
[340959609,1730159445649,-500.0,0.00043835,14]
[340959610,1730159445659,-500.0,0.00043835,14]
[340959611,1730159445669,-519.95817441,0.00043835,14]
[340959612,1730159445678,-581.02754393,0.00043835,14]
[340959613,1730159445688,-522.9651589,0.00043835,14]
[340959614,1730159445697,-508.06294603,0.00043835,14]
[340959615,1730159445707,-500.0,0.00043835,14]
[340959616,1730159445718,-264.53100328,0.00043835,14]
[340959617,1730159445728,-500.0,0.00043835,14]
[340959618,1730159445738,-500.0,0.00043835,14]
[340959620,1730159445749,-500.0,0.00043835,14]
[340959621,1730159445759,-500.0,0.00043835,14]
[340959622,1730159445769,-231.45419367,0.00043835,14]
[340959623,1730159445779,-543.48098776,0.00043835,14]
[340959624,1730159445788,-511.2708533,0.00043835,14]
[340959626,1730159445798,-517.65964992,0.00043835,14]
[340959628,1730159445808,-537.36138018,0.00043835,14]
[340959630,1730159445818,-529.30159921,0.00043835,14]
[340959632,1730159445829,-510.82237409,0.00043835,14]
[340959634,1730159445840,-563.80861223,0.00043835,14]
[340959637,1730159445849,-570.25668129,0.00043835,14]
[340959640,1730159445859,-511.2536474,0.00043835,14]
[340959642,1730159445869,-604.00907829,0.00043835,14]
[340959644,1730159445879,-508.63437159,0.00043835,14]
[340959646,1730159445890,-500.0,0.00043835,14]
[340959649,1730159445900,-500.0,0.00043835,14]
[340959651,1730159445910,-500.0,0.00043835,14]
[340959652,1730159445920,-500.0,0.00043835,14]
[340959654,1730159445930,-500.0,0.00043835,14]
[340959657,1730159445942,-500.0,0.00043835,14]
[340959659,1730159445953,-369.98244512,0.00043835,14]
[340959660,1730159445963,-544.47,0.00043835,14]
[340959663,1730159445974,-500.0,0.00043835,14]
[340959665,1730159445984,-500.0,0.00043835,14]
[340959667,1730159445994,-538.01538247,0.00043835,14]
[340959669,1730159446004,-500.0,0.00043835,14]
[340959670,1730159446014,-500.0,0.00043835,14]
[340959671,1730159446024,-647.98179081,0.00043835,14]
[340959672,1730159446033,-524.60934031,0.00043835,14]
[340959673,1730159446043,-529.25352927,0.00043835,14]
[340959674,1730159446054,-611.50429669,0.00043835,14]
[340959675,1730159446063,-525.97058778,0.00043835,14]
[340959676,1730159446076,-556.10155995,0.00043835,14]
[340959677,1730159446086,-641.52,0.00043835,14]
[340959678,1730159446095,-587.90356356,0.00043835,14]
[340959679,1730159446105,-571.1640465,0.00043835,14]
[340959680,1730159446115,-500.0,0.00043835,14]
[340959681,1730159446124,-522.64452339,0.00043835,14]
[340959682,1730159446134,-500.0,0.00043835,14]
[340959683,1730159446144,-527.83516668,0.00043835,14]
[340959684,1730159446158,-520.07269083,0.00043835,14]
[340959685,1730159446168,-504.43051593,0.00043835,14]
[340959686,1730159446178,-587.19219592,0.00043835,14]
[340959687,1730159446187,-518.74020209,0.00043835,14]
[340959688,1730159446196,-528.30838311,0.00043835,14]
[340959689,1730159446206,-535.61961014,0.00043835,14]
[340959690,1730159446218,-557.437526,0.00043835,14]
[340959691,1730159446228,-519.25394954,0.00043835,14]
[340959692,1730159446237,-500.0,0.00043835,14]
[340959693,1730159446246,-518.10446879,0.00043835,14]
[340959694,1730159446255,-592.78287435,0.00043835,14]
[340959695,1730159446264,-538.39255479,0.00043835,14]